[Event "French Top 16-A 2024"]
[Site "Chartres"]
[Date "2024.06.05"]
[Round "7.11"]
[White "Pichot, Alan"]
[Black "Martirosyan, Haik M."]
[Result "1/2-1/2"]
[ECO "C65"]
[WhiteElo "2635"]
[BlackElo "2679"]
[Annotator "TA"]
[PlyCount "55"]
[EventDate "2024.06.01"]
[EventType "team-tourn"]
[EventCountry "FRA"]
[SourceTitle "playchess.com"]
[Source "ChessBase"]
[SourceQuality "1"]
[TimeControl "40/5400+30:1800+30"]

{[%evp 9,55,6,10,0,6,10,12,0,24,16,32,16,33,21,14,0,-5,-8,0,-27,-23,-30,-31,-25,-21,-30,-8,-12,-12,-10,-9,-78,-60,-64,-22,-21,0,0,0,0,0,0,0,0,0,0,14,0]} 1. e4 {[%emt 0:00:58]} e5 {[%emt 0:00:12]} 2. Nf3 {[%emt 0:00:07]} Nc6 {[%emt 0:00:07]} 3. Bb5 {[%emt 0:00:16]} Nf6 {[%emt 0:00:08]} 4. d3 {[%emt 0:00:14]} Bc5 {[%emt 0:00:09]} 5. Ba4 {[%emt 0:00:54]} O-O {[%emt 0:01:53]} 6. O-O {[%emt 0:00:56]} d6 {[%emt 0:00:50]} 7. c3 {[%emt 0:00:36]} a5 {[%emt 0:06:04]} 8. h3 {[%emt 0:02:31]} Ba7 {[%emt 0:01:14]} 9. Re1 {[%emt 0:00:43]} Ne7 {[%emt 0:01:04][%cal Bc6e7,Be7g6,Bg6f4][%mdl 32]} 10. d4 {[%emt 0:04:16]} Ng6 {[%emt 0:00:37]} 11. Bc2 {[%emt 0:11:27]} Re8 {[%emt 0:18:32]} 12. Be3 {[%emt 0:03:40]} exd4 {[%emt 0:05:05]} 13. Bxd4 {[%emt 0:00:28]} c5 {[%emt 0:10:29]} 14. Bxf6 {[%emt 0:11:42]} Qxf6 {[%emt 0:00:11]} 15. Nbd2 {[%emt 0:00:08]} Nf4 {[%emt 0:01:29][%cal Oc5c4] aiming for ...c4!} 16. Nf1 {[%emt 0:04:38]} c4 {[%emt 0:03:02] And now ...Qg6 would win.} 17. Ne3 {[%emt 0:16:00]} Bxe3 {[%emt 0:04:48]} 18. fxe3 {[%emt 0:01:43] [#]} Nd3 {[%emt 0:01:49]} 19. Bxd3 {[%emt 0:09:30]} cxd3 {[%emt 0:00:49]} 20. Nd2 {[%emt 0:01:49]} (20. Kh1 $11) 20... Qg6 {[%emt 0:04:10]} 21. Kh2 {[%emt 0:02:59]} Bd7 {[%emt 0:12:36] Against Qa4} 22. Qb1 {[%emt 0:00:41] The position is equal.} d5 {[%emt 0:01:20]} 23. Qxd3 {[%emt 0:02:00][%cal Od3d4]} Rad8 {[%emt 0:01:42][%cal Od7h3]} ({Reject} 23... dxe4 $6 24. Qxd7 Rad8 25. Qb5 Qd6+ 26. Kg1 Qxd2 27. Rad1 $16) 24. Qe2 {[%emt 0:04:02]} dxe4 {[%emt 0:00:26]} 25. Nb3 {[%emt 0:00:34]} a4 {[%emt 0:02:03]} 26. Nd4 {[%emt 0:01:38]} Qd6+ {[%emt 0:01:31]} 27. Kh1 {[%emt 0:03:26]} f5 {[%emt 0:02:51]} 28. Rf1 {[%emt 0:01:06] Weighted Error Value: White=0.09 (flawless) /Black=0.09 (flawless) .  Mistake:       	White=1     	---        Inaccurate:     	White=1     	Black=1      OK:         	White=10    	Black=6      Best:        	White=1     	---} 1/2-1/2

[Event "French Top 16-A 2024"]
[Site "Chartres"]
[Date "2024.06.05"]
[Round "7.11"]
[White "Laurent-Paoli, Pierre"]
[Black "Van Wely, Loek"]
[Result "0-1"]
[ECO "D43"]
[WhiteElo "2576"]
[BlackElo "2608"]
[Annotator "TA"]
[PlyCount "54"]
[EventDate "2024.06.01"]
[EventType "team-tourn"]
[EventCountry "FRA"]
[SourceTitle "playchess.com"]
[Source "ChessBase"]
[SourceQuality "1"]
[TimeControl "40/5400+30:1800+30"]

{[%evp 19,54,0,0,-16,16,8,20,0,26,0,45,0,2,18,1,-35,-29,-97,-95,-401,-356,-350,-379,-539,-555,-598,-623,-834,-810,-939,-931,-1286,-1239,-6080,-6064,-5750,-3390]} 1. d4 {[%emt 0:01:28]} d5 {[%emt 0:00:45]} 2. c4 {[%emt 0:00:18]} c6 {[%emt 0:00:06]} 3. Nf3 {[%emt 0:00:12]} Nf6 {[%emt 0:00:07]} 4. Nc3 {[%emt 0:00:06]} e6 {[%emt 0:00:04]} 5. Bg5 {[%emt 0:00:31][%cal Bc1g5,Bg5h4,Bh4g3][%mdl 32]} h6 {[%emt 0:00:06]} 6. Bh4 {[%emt 0:00:10]} dxc4 {[%emt 0:00:07]} 7. e4 {[%emt 0:00:13]} g5 {[%emt 0:00:05]} 8. Bg3 {[%emt 0:00:03]} b5 {[%emt 0:00:06]} 9. Be2 {[%emt 0:00:05]} Bb7 {[%emt 0:00:30]} 10. O-O {[%emt 0:00:12]} Nbd7 {[%emt 0:00:55]} 11. Ne5 {[%emt 0:00:23]} h5 {[%emt 0:08:00]} 12. Nxd7 {[%emt 0:00:08]} Qxd7 {[%emt 0:00:07]} 13. Qc1 {[%emt 0:00:06] The position is equal.} Rg8 {[%emt 0:03:57]} (13... Be7 $5) 14. Qe3 {[%emt 0:00:12]} Bb4 {[%emt 0:15:57]} 15. Rad1 {[%emt 0:19:52]} Ng4 {[%emt 0:20:09] Dodges f4} 16. Bxg4 {[%emt 0:02:23]} hxg4 {[%emt 0:00:14]} 17. d5 {[%emt 0:24:28]} cxd5 {[%emt 0:04:56]} 18. exd5 {[%emt 0:03:38]} (18. Rfe1 $11) 18... Bxc3 $17 {[%emt 0:00:34]} 19. dxe6 $2 {[%emt 0:15:29][%mdl 8192] Now White is beyond hope.} (19. Qxc3 $17 {is a better chance.} Bxd5 20. Rfe1) 19... Qc6 $19 {[%emt 0:00:27][%csl Gb7][%cal Rc6g2]} 20. f3 {[%emt 0:09:52] [#]} Bb4 {[%emt 0:00:38] Dodges Rd6} (20... Bxb2 $2 {perishes.} 21. Rd6 Rg6 22. Rxc6 (22. fxg4 $2 Qxg2#) (22. Be5 Rxe6 23. Rxc6 Bxc6 $17) 22... Bxc6 23. fxg4 Rxe6 24. Qf2 $18 (24. Qxg5 Kf8 $18)) (20... Qxe6 $2 21. Qxc3 gxf3 22. Rfe1 $18) 21. exf7+ {[%emt 0:02:21]} (21. Rd7 {was necessary.} fxe6 22. Rd6) 21... Kxf7 {[%emt 0:00:11] Black is clearly winning.} 22. Be5 {[%emt 0:11:54]} Kg6 {[%emt 0:13:22]} 23. h4 {[%emt 0:02:38]} gxh3 {[%emt 0:01:06]} 24. Qe2 {[%emt 0:01:58]} Rae8 {[%emt 0:05:03] [#] Threatens to win with ...Qc5+.} 25. Kh2 {[%emt 0:03:14]} Qf6 {[%emt 0:06:36]} 26. f4 {[%emt 0:00:37]} hxg2 {[%emt 0:01:43] ( -> ...Rh8+)} 27. f5+ {[%emt 0:00:29]} Kh6 {[%emt 0:00:26] Weighted Error Value: White=1.39/Black=0.06 (flawless) .  Loses game:     	White=1     	---        Mistake:       	White=2     	---        Inaccurate:     	White=4     	Black=3      OK:         	White=3     	Black=3      Best:        	---       	Black=3} 0-1

[Event "French Top 16-A 2024"]
[Site "Chartres"]
[Date "2024.06.05"]
[Round "7.12"]
[White "Amin, Bassem"]
[Black "Santos Latasa, Jaime"]
[Result "0-1"]
[ECO "A08"]
[WhiteElo "2683"]
[BlackElo "2626"]
[Annotator "TA"]
[PlyCount "74"]
[EventDate "2024.06.01"]
[EventType "team-tourn"]
[EventCountry "FRA"]
[SourceTitle "playchess.com"]
[Source "ChessBase"]
[SourceQuality "1"]
[TimeControl "40/5400+30:1800+30"]

{[%evp 12,74,-16,-24,-17,-18,-16,-40,-10,-27,-22,-20,-28,-20,-20,-29,-4,-51,-43,-52,-11,-18,-20,-41,-36,-33,-36,-37,-30,-30,-30,-32,-33,-82,-34,-91,-91,-83,-76,-120,-110,-177,-185,-162,-145,-197,-197,-179,-187,-177,-168,-166,-165,-215,-210,-357,-351,-353,-327,-375,-378,-387,-381,-373,-363]} 1. Nf3 {[%emt 0:04:37]} Nf6 {[%emt 0:00:44]} 2. g3 {[%emt 0:00:12]} c5 {[%emt 0:00:06]} 3. Bg2 {[%emt 0:00:10]} Nc6 {[%emt 0:00:06]} 4. O-O {[%emt 0:01:38]} e5 {[%emt 0:01:07]} 5. d3 {[%emt 0:00:30]} d5 {[%emt 0:00:08]} 6. e4 {[%emt 0:00:07]} d4 {[%emt 0:00:11]} 7. a4 {[%emt 0:00:06]} Bd6 {[%emt 0:00:46]} 8. Na3 {[%emt 0:00:07]} O-O {[%emt 0:00:27]} 9. Ne1 {[%emt 0:00:31]} a6 {[%emt 0:08:16] Black is slightly better.} 10. Nc4 {[%emt 0:00:40]} Bc7 {[%emt 0:00:06]} 11. f4 {[%emt 0:00:16]} Bg4 {[%emt 0:01:49]} 12. Nf3 {[%emt 0:05:56]} exf4 {[%emt 0:04:38]} 13. Bxf4 {[%emt 0:00:36]} Nd7 {[%emt 0:00:59]} 14. Qb1 {[%emt 0:13:59]} (14. Qd2 $11) 14... Rb8 $15 {[%emt 0:08:27]} 15. a5 {[%emt 0:03:04]} Bxf3 {[%emt 0:01:34]} 16. Rxf3 {[%emt 0:00:42]} Nde5 {[%emt 0:01:19]} (16... Nxa5 $2 {perishes.} 17. Bxc7 Qxc7 18. Nxa5 $18 (18. Rxa5 $2 b5 $19)) 17. Bxe5 {[%emt 0:00:23]} Nxe5 {[%emt 0:00:43]} 18. Nxe5 {[%emt 0:00:08]} Bxe5 {[%emt 0:00:04]} 19. Qa2 {[%emt 0:00:12]} Qe7 {[%emt 0:01:06]} 20. Raf1 {[%emt 0:00:55]} g6 {[%emt 0:00:29]} 21. Qd5 {[%emt 0:03:00]} Rbe8 {[%emt 0:01:50]} 22. g4 {[%emt 0:07:18]} (22. Bh3 $15 {might be stronger.}) 22... Rd8 {[%emt 0:06:56]} (22... h6 $17) 23. Qa2 {[%emt 0:18:54]} (23. Rxf7 $1 $15 Bxh2+ (23... Qxf7 24. Rxf7 Rxd5 25. Rxf8+ Kxf8 26. exd5 $14) 24. Kh1 Qxf7 (24... Rxf7 25. Rxf7 Qxf7 26. Qxd8+ Kg7 27. Kxh2 $11) 25. Rxf7 Rxd5 26. Rxf8+ Kxf8 27. exd5) 23... Rd7 $17 {[%emt 0:03:42] White is weak on the dark squares} 24. Qa1 {[%emt 0:03:38]} c4 {[%emt 0:06:10]} 25. Kh1 {[%emt 0:04:30]} Rc7 {[%emt 0:01:42]} 26. Qa2 {[%emt 0:06:41]} (26. dxc4 $17 {was necessary.} Rxc4 27. R1f2) 26... cxd3 $19 {[%emt 0:10:51]} 27. cxd3 {[%emt 0:00:06]} Kg7 {[%emt 0:01:04]} 28. R3f2 {[%emt 0:02:41] [#]} (28. b3 $17) 28... Qh4 $1 {[%emt 0:03:48][%csl Ge5,LRg4,LRh2][%cal Rh4h2]} 29. Bf3 {[%emt 0:00:37] [#]} Rc1 $3 {[%emt 0:01:37][%mdl 512] ( -> ...Rxf1+)} 30. b4 {[%emt 0:00:14]} Rxf1+ {[%emt 0:00:28]} 31. Rxf1 {[%emt 0:00:01]} Rc8 {[%emt 0:01:09]} 32. Bd1 {[%emt 0:15:59] [#]} (32. Qf2 $142 Qe7 33. h4) 32... f6 $1 $40 {[%emt 0:01:41][%mdl 128] Black wants a kill. Active counter play!} 33. Bb3 {[%emt 0:00:59]} (33. Qf2 $142 Qh3 34. g5) 33... Qh3 {[%emt 0:02:04]} ({Weaker is} 33... Qxg4 34. Be6 $11) 34. Qg2 {[%emt 0:04:00]} Qxd3 {[%emt 0:00:23]} 35. Ba4 {[%emt 0:00:12]} Qe3 {[%emt 0:02:05] Black is winning.} 36. g5 {[%emt 0:04:04]} fxg5 {[%emt 0:02:18] ...Rc1 would now be deadly.} 37. Qf3 {[%emt 0:00:43]} Bf4 {[%emt 0:01:27] Weighted Error Value: White=0.24 (precise) /Black=0.07 (flawless) .  Mistake:       	White=7     	Black=1      Inaccurate:     	White=1     	Black=2      OK:         	White=8     	Black=15     Best:        	White=1     	Black=1      Strong:       	---       	Black=1} 0-1

[Event "French Top 16-A 2024"]
[Site "Chartres"]
[Date "2024.06.05"]
[Round "7.12"]
[White "Movsesian, Sergei"]
[Black "Vernay, Clovis"]
[Result "1/2-1/2"]
[ECO "A07"]
[WhiteElo "2618"]
[BlackElo "2474"]
[Annotator "TA"]
[PlyCount "50"]
[EventDate "2024.06.01"]
[EventType "team-tourn"]
[EventCountry "FRA"]
[SourceTitle "playchess.com"]
[Source "ChessBase"]
[SourceQuality "1"]
[TimeControl "40/5400+30:1800+30"]

{[%evp 10,50,29,32,56,52,52,55,57,25,66,51,58,28,72,47,48,52,51,37,37,47,50,44,42,45,41,31,30,1,9,0,0,0,0,-10,0,0,0,-13,0,0,0]} 1. Nf3 {[%emt 0:00:04]} d5 {[%emt 0:00:31]} 2. g3 {[%emt 0:00:06]} c6 {[%emt 0:02:29]} 3. Bg2 {[%emt 0:00:33]} Bf5 {[%emt 0:00:39]} 4. O-O {[%emt 0:02:19]} Nf6 {[%emt 0:03:25]} 5. d3 {[%emt 0:01:54]} Nbd7 {[%emt 0:00:54]} 6. Nh4 {[%emt 0:01:39]} Bg6 {[%emt 0:02:46]} 7. Nxg6 {[%emt 0:02:51]} hxg6 {[%emt 0:00:07]} 8. e4 {[%emt 0:00:17]} e6 {[%emt 0:06:19] White is slightly better.} 9. Qe2 {[%emt 0:01:47]} Bc5 {[%emt 0:01:26]} 10. Nd2 {[%emt 0:02:41]} a5 {[%emt 0:00:41]} 11. a4 {[%emt 0:04:26]} Qb6 {[%emt 0:08:20]} 12. Nb3 {[%emt 0:05:07]} Bd6 {[%emt 0:00:52]} 13. Be3 {[%emt 0:04:43]} Qa6 {[%emt 0:00:05]} 14. c4 {[%emt 0:08:37]} dxc4 {[%emt 0:08:56]} 15. dxc4 {[%emt 0:00:06]} e5 {[%emt 0:00:07]} 16. Rfd1 {[%emt 0:16:15]} Be7 {[%emt 0:03:39]} 17. Bf3 {[%emt 0:04:47]} c5 {[%emt 0:01:10]} 18. h4 {[%emt 0:03:32]} Qb6 {[%emt 0:01:32]} 19. Nc1 {[%emt 0:06:31]} Nb8 {[%emt 0:11:44] The position is equal.} 20. Nd3 {[%emt 0:00:55]} Nc6 {[%emt 0:00:08]} 21. Kg2 {[%emt 0:03:56]} Rd8 {[%emt 0:00:39]} 22. Qc2 {[%emt 0:02:22]} Nd7 {[%emt 0:02:35]} 23. Bg4 {[%emt 0:02:45]} Nf6 {[%emt 0:00:06]} 24. Bf3 {[%emt 0:00:54]} Nd7 {[%emt 0:00:07]} 25. Bg4 {[%emt 0:04:26]} Nf6 {[%emt 0:00:06] Weighted Error Value: White=0.09 (flawless) /Black=0.08 (flawless) .  Inaccurate:     	White=3     	Black=2      OK:         	White=7     	Black=7} 1/2-1/2

[Event "French Top 16-A 2024"]
[Site "Chartres"]
[Date "2024.06.05"]
[Round "7.13"]
[White "Fedorchuk, Sergey A."]
[Black "Moussard, Jules"]
[Result "1/2-1/2"]
[ECO "C07"]
[WhiteElo "2546"]
[BlackElo "2611"]
[Annotator "TA"]
[PlyCount "87"]
[EventDate "2024.06.01"]
[EventType "team-tourn"]
[EventCountry "FRA"]
[SourceTitle "playchess.com"]
[Source "ChessBase"]
[SourceQuality "1"]
[TimeControl "40/5400+30:1800+30"]

{[%evp 20,87,0,0,34,4,32,0,57,67,74,58,72,35,56,2,60,37,55,70,69,63,56,59,46,54,70,54,146,97,117,107,162,135,144,89,131,145,198,228,213,225,357,210,238,235,243,237,269,76,361,0,20,0,0,0,0,0,0,0,0,0,0,0,0,0,0,0,0,0]} 1. e4 {[%emt 0:00:02]} e6 {[%emt 0:01:18]} 2. d4 {[%emt 0:02:35]} d5 {[%emt 0:00:05]} 3. Nd2 {[%emt 0:00:40]} c5 {[%emt 0:00:12]} 4. exd5 {[%emt 0:03:03]} Qxd5 {[%emt 0:00:10]} 5. dxc5 {[%emt 0:00:47]} Nf6 {[%emt 0:00:35]} 6. Ngf3 {[%emt 0:00:22] C07: French Tarrasch: 3...c5, 4 Ngf3 and 4 exd5 Qxd5.} Qxc5 {[%emt 0:00:37]} 7. Bd3 {[%emt 0:00:28]} Be7 {[%emt 0:01:07]} 8. O-O {[%emt 0:02:37]} Qc7 {[%emt 0:02:18]} 9. a4 {[%emt 0:00:58]} O-O {[%emt 0:01:55]} 10. Qe2 {[%emt 0:04:57]} Nbd7 {[%emt 0:05:30]} 11. a5 {[%emt 0:16:06]} Rd8 {[%emt 0:13:54]} 12. Nb3 {[%emt 0:06:03]} Nd5 {[%emt 0:04:14]} 13. Ra4 {[%emt 0:01:39]} Nc5 $146 {[%emt 0:18:48]} (13... Nf8 $11) ({Predecessor:} 13... N7f6 14. Rc4 Qd6 15. Ne5 Bd7 16. Nxd7 Rxd7 17. Bd2 Rad8 18. g3 g6 19. Re1 h5 {0-1 Castellanos Rodriguez,R (2474)-Vallejo Pons,F (2704) Wch Blitz Moscow 2019 (21)}) 14. Nxc5 $14 {[%emt 0:15:55]} Qxc5 {[%emt 0:00:26]} 15. Ne5 {[%emt 0:02:21]} g6 {[%emt 0:04:46]} 16. Bd2 {[%emt 0:02:01]} Bd7 {[%emt 0:04:41]} 17. Rg4 {[%emt 0:09:49]} (17. Re4 $14) 17... Be8 {[%emt 0:08:57]} (17... Bf6 $1 $11) 18. h4 {[%emt 0:00:33]} Bf6 {[%emt 0:04:27]} 19. Re1 {[%emt 0:09:18]} Rac8 {[%emt 0:08:55]} 20. h5 {[%emt 0:02:02]} Qd6 $1 {[%emt 0:00:50]} 21. hxg6 {[%emt 0:06:43]} hxg6 {[%emt 0:00:04]} 22. Re4 {[%emt 0:03:38]} Bg7 {[%emt 0:03:10]} 23. Qf3 {[%emt 0:01:52]} Ne7 {[%emt 0:08:20]} (23... Qc7 $14) 24. Bg5 {[%emt 0:04:57]} (24. Qh3 $142) 24... Nf5 {[%emt 0:00:14]} 25. Bxd8 {[%emt 0:02:15]} (25. Nxg6 {seems wilder.} Bc6 26. Nf4 Bxe4 27. Rxe4 Bxb2 28. Qh3) 25... Qxd8 {[%emt 0:00:10]} (25... Rxd8 $16 26. Qf4 Qc5) 26. b4 {[%emt 0:01:02]} Qd6 {[%emt 0:06:24]} 27. b5 {[%emt 0:00:13]} (27. Qf4 $142) 27... Rc5 {[%emt 0:00:55] [#]} 28. Nxg6 $1 {[%emt 0:00:41]} Bxb5 {[%emt 0:00:24]} (28... Nd4 $16 29. Qf4 Qxf4 30. Nxf4 Nxb5) 29. Bxb5 $18 {[%emt 0:00:30]} Rxb5 {[%emt 0:00:01]} 30. Nf4 {[%emt 0:00:24]} Nd4 {[%emt 0:00:54]} (30... Qd2 {is a better defense.} 31. a6 bxa6) 31. Qd3 {[%emt 0:00:14]} (31. Qg4 $142 {Nh5 would now be deadly.} Qd8 (31... Nxc2 $2 32. Nxe6 fxe6 33. Rxe6 $18) (31... f5 $2 32. Rxd4 Qxd4 33. Qh5 $18) 32. Re5 Rxe5 33. Rxe5) 31... Rxa5 {[%emt 0:00:17] [#]} (31... f5 $2 32. Rxd4 Bxd4 33. Qxb5 $18 (33. Nxe6 Re5 $16)) 32. Rd1 $1 {[%emt 0:00:43]} e5 {[%emt 0:00:51]} 33. Nh5 {[%emt 0:00:22]} Rd5 {[%emt 0:00:53]} 34. Rg4 $2 {[%emt 0:00:46]} (34. Rde1 $18 {has better winning chances. Black must now prevent Rg4.} Nf5 35. Qf3) 34... Kf8 $2 {[%emt 0:00:35][%mdl 8192]} (34... e4 $16 35. Rxe4 (35. Nxg7 $2 {too greedy.} exd3 36. Ne8+ Kf8 $19) (35. Rxg7+ Kf8 $11) 35... Nf3+ 36. gxf3 Rxd3 37. Rxd3 Qc5) 35. Rxg7 $2 {[%emt 0:00:31]} (35. Re1 $18 e4 36. Rgxe4 (36. Nxg7 f5 $16)) 35... Nf3+ {[%emt 0:00:12]} (35... e4 $5 36. Qxe4 Ne2+ 37. Kf1 Rxd1+ 38. Kxe2 Rh1 $11) 36. Qxf3 {[%emt 0:00:10]} Rxd1+ {[%emt 0:00:02]} 37. Kh2 {[%emt 0:00:04]} e4+ {[%emt 0:00:03]} 38. Qg3 {[%emt 0:00:29]} Rh1+ $1 {[%emt 0:00:24]} 39. Kxh1 {[%emt 0:00:26]} Qd1+ {[%emt 0:00:03]} 40. Kh2 {[%emt 0:00:09]} Qxh5+ {[%emt 0:00:02]} 41. Kg1 {[%emt 0:30:10]} Qd1+ {[%emt 0:30:02]} 42. Kh2 {[%emt 0:00:06]} Qh5+ {[%emt 0:00:02]} 43. Kg1 {[%emt 0:00:34]} Qd1+ {[%emt 0:00:02]} 44. Kh2 {[%emt 0:00:23]} 1/2-1/2

[Event "French Top 16-A 2024"]
[Site "Chartres"]
[Date "2024.06.05"]
[Round "7.13"]
[White "Girel, Joseph"]
[Black "Tregubov, Pavel V."]
[Result "1/2-1/2"]
[ECO "C84"]
[WhiteElo "2477"]
[BlackElo "2562"]
[Annotator "TA"]
[PlyCount "103"]
[EventDate "2024.06.01"]
[EventType "team-tourn"]
[EventCountry "FRA"]
[SourceTitle "playchess.com"]
[Source "ChessBase"]
[SourceQuality "1"]
[TimeControl "40/5400+30:1800+30"]

{[%evp 15,103,15,27,16,12,0,41,18,15,0,8,11,8,1,78,20,30,21,24,26,125,135,119,37,35,29,67,77,50,62,70,59,89,84,84,85,98,87,95,95,124,124,119,112,112,105,101,101,109,72,86,83,95,89,115,114,116,118,120,122,125,125,161,161,166,158,152,153,145,80,80,80,80,51,57,60,60,0,0,0,0,0,0,0,0,0,0,0,0,0]} 1. e4 {[%emt 0:00:40]} e5 {[%emt 0:00:35]} 2. Nf3 {[%emt 0:00:22]} Nc6 {[%emt 0:00:08]} 3. Bb5 {[%emt 0:00:37][%cal Bf1b5,Bb5a4,Ba4b3][%mdl 32]} a6 {[%emt 0:00:07]} 4. Ba4 {[%emt 0:00:12]} Nf6 {[%emt 0:00:08]} 5. O-O {[%emt 0:00:29]} Be7 {[%emt 0:00:19]} 6. d3 {[%emt 0:01:22]} b5 {[%emt 0:00:26][%cal Bb7b5,Bb5b4][%mdl 32]} 7. Bb3 {[%emt 0:00:06]} O-O {[%emt 0:00:38]} 8. c3 {[%emt 0:00:26]} d6 {[%emt 0:02:20]} 9. a4 {[%emt 0:00:07]} b4 {[%emt 0:00:30]} 10. a5 {[%emt 0:00:30]} Be6 {[%emt 0:19:29]} 11. Bxe6 {[%emt 0:05:57] White is slightly better.} fxe6 {[%emt 0:00:30]} 12. Qa4 {[%emt 1:25:42][%csl LRb4,LRc6]} Qd7 13. cxb4 {[%emt 0:00:00]} d5 {[%emt 0:19:35]} 14. Bg5 {[%emt 0:00:00]} Rfd8 {[%emt 0:09:34]} (14... Qd6 $11) 15. exd5 {[%emt 0:00:00]} (15. Rc1 $16 dxe4 16. dxe4 (16. Rxc6 exf3 17. Nd2 fxg2 $11)) 15... Nxd5 $11 {[%emt 0:07:22]} 16. Bxe7 {[%emt 0:00:00]} Ndxe7 {[%emt 0:00:24]} 17. Nc3 {[%emt 0:00:00]} Rab8 {[%emt 0:01:23]} (17... Qxd3 $11 18. Rae1 Qf5) 18. b5 $16 {[%emt 0:00:00]} axb5 {[%emt 0:00:10] [#]} 19. Nxb5 {[%emt 0:00:00]} (19. Qg4 $1 $16) 19... Nxa5 $14 {[%emt 0:00:55]} 20. Nxc7 {[%emt 0:00:00]} Qxc7 {[%emt 0:14:11]} 21. Qxa5 {[%emt 0:00:00]} Qxa5 {[%emt 0:00:04]} 22. Rxa5 {[%emt 0:00:00]} Nc6 {[%emt 0:08:24]} 23. Rc5 {[%emt 0:00:00]} Nb4 {[%emt 0:00:40]} 24. Rxe5 {[%emt 0:00:00]} Nxd3 {[%emt 0:02:16]} 25. Rxe6 {[%emt 0:00:00]} Nxb2 {[%emt 0:00:18]} 26. h4 {[%emt 0:00:00]} h6 {[%emt 0:02:10]} 27. g3 {[%emt 0:00:00]} Rd1 {[%emt 0:01:33]} 28. Rxd1 {[%emt 0:00:00]} Nxd1 $16 {[%emt 0:00:06][%mdl 4096] Endgame. KRN-KRN} 29. Rd6 {[%emt 0:00:00]} Nc3 {[%emt 0:00:19]} 30. Kg2 {[%emt 0:00:00]} Ne4 {[%emt 0:01:02]} 31. Rd4 {[%emt 0:00:00]} Nf6 {[%emt 0:00:47]} 32. Ne5 {[%emt 0:00:00]} Re8 {[%emt 0:00:44]} 33. Nd3 {[%emt 0:00:00]} Kf7 {[%emt 0:00:34]} 34. Ra4 {[%emt 0:00:00]} Re7 {[%emt 0:01:10]} 35. Ra5 {[%emt 0:00:00]} g6 {[%emt 0:06:34]} 36. Ne5+ {[%emt 0:00:00]} Kg7 {[%emt 0:00:10]} 37. g4 {[%emt 0:00:00][%cal Bg3g4,Bg4g5][%mdl 32]} h5 {[%emt 0:02:02]} 38. g5 {[%emt 0:01:34]} Nd7 {[%emt 0:00:11] [#]} 39. Nd3 {[%emt 0:02:16]} Nf8 {[%emt 0:00:35]} 40. Kg3 {[%emt 0:02:14]} Ne6 {[%emt 0:01:02]} 41. Rd5 {[%emt 0:33:04] Repels Nd4} Kh7 {[%emt 0:02:15]} 42. Re5 {[%emt 0:00:00]} ({White should try} 42. Ne5) 42... Rd7 {[%emt 0:00:11]} 43. Nb4 {[%emt 0:00:00]} Nd4 {[%emt 0:05:16]} 44. Nd5 {[%emt 0:00:00] Strongly threatening Nf6+.} Kg7 {[%emt 0:00:15]} 45. Ne3 {[%emt 0:00:00]} Rf7 {[%emt 0:00:37]} 46. Re4 {[%emt 0:00:00]} (46. f4 $1 $14) 46... Ne2+ $11 {[%emt 0:03:03] The position is equal.} 47. Kg2 {[%emt 0:00:00]} Nf4+ {[%emt 0:00:05]} 48. Kf1 {[%emt 0:00:00]} Nd3 $1 {[%emt 0:00:42]} 49. f3 {[%emt 0:00:00]} Nc5 $1 {[%emt 0:01:26]} 50. Rc4 {[%emt 0:00:00]} Nd3 {[%emt 0:01:04]} 51. Rd4 {[%emt 0:00:00]} Ne5 {[%emt 0:00:23]} 52. f4 {[%emt 0:00:00] Blacks defense is rewarded with a draw.   Weighted Error Value: White=0.11 (very precise) /Black=0.15 (very precise) .  Mistake:       	White=4     	Black=2      Inaccurate:     	White=2     	Black=4      OK:         	White=16    	Black=15     Best:        	White=3     	Black=5      Strong:       	---       	Black=2} 1/2-1/2